bitfinex/quotes_SOLUSD_20240712
["timestamp","ask_amount","ask_price","bid_price","bid_amount"]
[1720778030006,10.0,134.92,134.84,112.54002423]
[1720778030229,10.0,134.9,134.84,112.54002423]
[1720778030411,20.0,134.89,134.84,112.54002423]
[1720778030615,65.0,134.89,134.84,112.54002423]
[1720778030820,7.415,134.87,134.84,112.54002423]
[1720778031033,7.4146,134.87,134.84,112.54002423]
[1720778031525,7.4147,134.87,134.84,112.54002423]
[1720778031835,65.0,134.89,134.84,119.95602423]
[1720778032133,45.0,134.89,134.85,7.4155]
[1720778032340,7.4152,134.86,134.84,112.54002423]
[1720778032512,7.4147,134.87,134.84,112.54002423]
[1720778032712,45.0,134.89,134.84,112.54002423]
[1720778032915,45.0,134.9,134.84,112.54002423]
[1720778033116,10.0,134.89,134.84,112.54002423]
[1720778033329,52.4144,134.88,134.84,112.54002423]
[1720778033546,7.4144,134.88,134.84,112.54002423]
[1720778033841,52.4132,134.9,134.84,112.54002423]
[1720778034011,52.4132,134.9,134.85,7.4156]
[1720778034614,52.4132,134.9,134.84,119.95602423]
[1720778034815,52.4132,134.9,134.85,7.4156]
[1720778035015,45.0,134.9,134.86,7.415]
[1720778035246,7.4125,134.91,134.84,112.54002423]
[1720778035415,7.4125,134.91,134.86,7.4147]
[1720778035748,10.0,134.9,134.84,112.54002423]
[1720778036049,7.415,134.87,134.84,112.54002423]
[1720778036244,7.4153,134.86,134.84,112.54002423]
[1720778036414,7.4156,134.85,134.84,112.54002423]
[1720778036612,10.0,134.9,134.84,112.54002423]
[1720778036814,7.4145,134.87,134.84,112.54002423]
[1720778037015,45.0,134.89,134.84,112.54002423]
[1720778037315,20.0,134.88,134.84,112.54002423]
[1720778037636,7.4155,134.86,134.84,112.54002423]
[1720778038226,7.4156,134.85,134.84,112.54002423]
[1720778038422,7.4152,134.86,134.84,112.54002423]
[1720778038732,52.4156,134.85,134.84,112.54002423]
[1720778039725,7.4152,134.86,134.84,112.54002423]
[1720778040033,30.0,134.88,134.84,112.54002423]
[1720778040213,45.0,134.87,134.84,112.54002423]
[1720778040621,27.4143,134.88,134.84,112.54002423]
[1720778041016,17.11474616,134.92,134.84,119.95582423]
[1720778041218,10.0,134.89,134.84,112.54002423]
[1720778041473,7.4156,134.85,134.84,112.54002423]
[1720778041820,17.4156,134.85,134.84,112.54002423]
[1720778042149,45.0,134.85,134.84,112.54002423]
[1720778042365,20.0,134.85,134.84,112.54002423]
[1720778042651,10.0,134.92,134.84,112.54002423]
[1720778042849,10.0,134.92,134.85,15.6478]
[1720778043145,7.413,134.9,134.85,15.6478]
[1720778043454,7.4123,134.92,134.85,23.0633]
[1720778043658,15.02741695,134.94,134.88,7.4138]
[1720778043812,7.4111,134.94,134.88,7.4138]
[1720778044015,10.0,134.98,134.89,15.6478]
[1720778044016,10.0,134.96,134.89,15.6478]
[1720778044234,7.4119,134.92,134.89,15.6478]
[1720778044436,7.4128,134.9,134.89,15.6478]
[1720778044743,7.4123,134.92,134.89,15.6478]
[1720778045043,7.4106,134.95,134.89,15.6478]
[1720778045430,10.0,134.95,134.89,15.6478]
[1720778045735,28.5234,134.97,134.89,15.6478]
[1720778046041,7.4111,134.94,134.89,15.6478]
[1720778046220,7.41,134.96,134.9,7.4128]
[1720778047142,7.4103,134.95,134.91,6.14]
[1720778047445,7.4097,134.96,134.91,6.14]
[1720778047839,7.61618289,134.98,134.91,24.6702]
[1720778048038,7.409,134.98,134.92,7.4113]
[1720778048244,7.4102,134.95,134.91,6.14]
[1720778049041,7.4117,134.93,134.91,6.14]
[1720778049251,7.4108,134.94,134.91,6.14]
[1720778049427,7.4103,134.95,134.91,6.14]
[1720778049833,10.0,134.96,134.91,6.14]
[1720778050037,27.4102,134.95,134.91,6.14]
[1720778050242,10.22280973,135.0,134.91,6.14]
[1720778050554,7.4094,134.97,134.91,13.5521]
[1720778050855,7.4103,134.95,134.91,6.14]
[1720778051064,7.4103,134.95,134.89,23.061]
[1720778051065,10.0,134.95,134.89,15.6478]
[1720778051238,7.4121,134.92,134.89,15.6478]
[1720778052133,7.4124,134.91,134.89,15.6478]
[1720778052338,29.6224,134.91,134.9,1.0]
[1720778052654,94.6224,134.91,134.9,1.0]
[1720778053234,72.4124,134.91,134.9,1.0]
[1720778053544,94.6224,134.91,134.9,1.0]
[1720778053745,72.4124,134.91,134.9,1.0]
[1720778054539,52.4124,134.91,134.9,1.0]
[1720778054756,7.4124,134.91,134.9,1.0]
[1720778055538,0.22280973,134.94,134.9,1.0]
[1720778055747,20.0,134.95,134.9,1.0]
[1720778055938,10.0,134.93,134.9,1.0]
[1720778056140,17.4123,134.91,134.9,1.0]
[1720778056660,37.4123,134.91,134.9,1.0]
[1720778057044,72.4123,134.91,134.9,1.0]
[1720778058843,7.4123,134.91,134.9,1.0]
[1720778059256,40.36253765,134.95,134.9,1.0]
[1720778059573,20.0,134.94,134.9,1.0]
[1720778059944,7.4118,134.92,134.9,1.0]
[1720778060143,20.0,134.94,134.9,1.0]
[1720778060351,7.4115,134.93,134.9,1.0]
[1720778060561,7.4101,134.96,134.91,15.0179]
[1720778061076,7.4092,134.97,134.92,7.4117]
[1720778061448,7.4096,134.96,134.92,7.4117]
[1720778062072,7.4101,134.95,134.91,15.0179]
[1720778062245,7.4107,134.94,134.91,15.0179]
[1720778062443,7.4113,134.93,134.91,15.0179]
[1720778062757,7.4103,134.95,134.91,15.0179]
[1720778063153,7.4107,134.94,134.91,15.0179]
[1720778063344,7.4102,134.95,134.91,15.0179]
[1720778063939,18.5215,134.98,134.91,22.4301]
[1720778064145,7.4099,134.96,134.91,22.4301]
[1720778064769,7.4101,134.95,134.91,15.0179]
[1720778064970,7.4097,134.96,134.91,22.4302]
[1720778065342,15.13713798,135.0,134.92,7.4117]
[1720778065343,7.4092,134.97,134.92,7.4117]
[1720778065845,7.4083,134.99,134.94,7.4104]
[1720778066042,7.4089,134.98,134.93,7.411]
[1720778066470,7.4106,134.95,134.91,15.0179]
[1720778066652,7.41,134.96,134.91,22.4301]
[1720778067073,7.4102,134.95,134.91,15.0179]
[1720778067272,18.5205,134.99,134.91,22.4299]
[1720778067564,7.4092,134.97,134.92,7.4117]
[1720778067762,7.4092,134.97,134.93,7.4111]
[1720778067968,7.4092,134.97,134.92,7.4115]
[1720778068162,7.4087,134.98,134.93,7.4111]
[1720778068565,7.4093,134.97,134.92,25.9408]
[1720778068972,26.04201015,135.0,134.92,25.9408]
[1720778068973,7.4085,134.98,134.93,7.4112]
[1720778069353,7.4099,134.96,134.91,15.0179]
[1720778069556,7.4099,134.96,134.91,22.43]
[1720778069767,7.4092,134.97,134.92,7.4116]
[1720778069964,25.60113765,135.0,134.91,15.0179]
[1720778070150,7.08253765,135.0,134.91,15.0179]
[1720778070349,7.08253765,135.0,134.93,18.5277]
[1720778070550,7.4088,134.98,134.93,25.9387]
[1720778071162,7.4091,134.97,134.94,22.1922]
[1720778071557,7.4096,134.96,134.94,22.1922]
[1720778071763,7.08253765,135.0,134.94,22.1922]
[1720778072579,7.4099,134.96,134.94,22.1922]
[1720778073589,7.4101,134.95,134.94,16.1795]
[1720778075480,10.0,134.96,134.91,22.601]
[1720778075685,7.4116,134.93,134.91,22.601]
[1720778075978,7.4117,134.92,134.91,22.601]
[1720778076378,7.4114,134.93,134.91,22.601]
[1720778076584,7.4109,134.94,134.91,22.601]
[1720778076759,27.4109,134.94,134.91,22.601]
[1720778077188,7.4103,134.95,134.91,22.601]
[1720778077376,50.7324,134.98,134.91,22.601]
[1720778077562,7.4117,134.92,134.91,22.601]
[1720778077771,7.4117,134.92,134.91,16.5883]
[1720778078694,7.4117,134.92,134.91,16.5883]
[1720778079551,7.4114,134.93,134.91,16.5883]
[1720778080963,7.4117,134.92,134.91,16.5883]
[1720778081279,7.4114,134.93,134.91,16.5883]
[1720778081455,7.4117,134.92,134.91,16.5883]
[1720778082076,7.4113,134.93,134.91,16.5883]
[1720778082282,7.4117,134.92,134.91,16.5883]
[1720778083686,7.4108,134.94,134.91,16.5883]
[1720778084583,7.4095,134.97,134.91,24.0001]
[1720778084784,29.62,134.98,134.91,24.0001]
[1720778085093,7.4096,134.96,134.91,24.0001]
[1720778085465,7.4102,134.95,134.91,24.0001]
[1720778085692,7.4102,134.95,134.91,16.5883]
[1720778086393,7.4098,134.96,134.91,16.5883]
[1720778087288,7.4109,134.94,134.91,16.5883]
[1720778088080,48.1443,134.96,134.91,16.5883]
[1720778088466,7.4117,134.92,134.91,16.5883]
[1720778088667,7.4113,134.93,134.91,16.5883]
[1720778089670,7.4108,134.94,134.91,16.5883]
[1720778090370,7.4099,134.96,134.91,24.0005]
[1720778090763,7.4117,134.92,134.91,16.5883]
[1720778091684,18.5288,134.93,134.84,112.54002423]
[1720778091685,28.3642,134.93,134.84,112.54002423]
[1720778091868,7.4156,134.85,134.84,109.73415084]
[1720778092068,7.4156,134.85,134.84,55.34026157]
[1720778092269,7.4156,134.85,134.84,53.08026157]
[1720778093298,7.4152,134.86,134.84,53.08026157]
[1720778093475,14.18868154,134.88,134.84,53.08026157]
[1720778093665,7.4145,134.87,134.85,6.0227]
[1720778094004,7.415,134.86,134.85,6.0227]
[1720778094284,7.4141,134.88,134.85,6.0227]
[1720778094489,7.415,134.86,134.85,6.0227]
[1720778094783,5.84666077,134.86,134.85,6.0227]
[1720778096392,7.4156,134.85,134.84,69.50856157]
[1720778096775,7.4151,134.86,134.84,69.50856157]
[1720778096989,7.4156,134.85,134.84,69.50856157]
[1720778098667,7.4156,134.85,134.84,53.08026157]
[1720778099793,55.58871681,134.88,134.84,53.08026157]
[1720778099973,7.4151,134.86,134.84,53.08026157]
[1720778100475,7.4156,134.85,134.84,53.08026157]
[1720778100682,72.4156,134.85,134.84,53.08026157]
[1720778102189,27.4156,134.85,134.84,53.08026157]
[1720778102580,72.4156,134.85,134.84,53.08026157]
[1720778102889,82.4156,134.85,134.84,53.08026157]
[1720778103192,82.4156,134.85,134.84,50.17778479]
[1720778103965,120.7142,134.85,134.84,17.75378479]
[1720778104179,120.7142,134.85,134.78,0.8991114]
[1720778104180,7.4196,134.78,134.74,34.4217]
[1720778104381,7.4201,134.77,134.74,15.8678]
[1720778104696,18.5465,134.8,134.74,15.8678]
[1720778104909,7.4215,134.75,134.72,6.6314]
[1720778105188,104.62,134.79,134.72,6.6314]
[1720778105594,7.4218,134.74,134.72,6.6314]
[1720778105802,7.4209,134.76,134.72,6.6314]
[1720778105972,7.4208,134.76,134.72,6.6314]
[1720778106172,7.4214,134.75,134.72,6.6314]
[1720778106401,7.4215,134.75,134.72,6.6314]
[1720778106885,7.4207,134.76,134.72,6.6314]
[1720778107089,20.0,134.79,134.73,7.4218]
[1720778107276,7.4196,134.78,134.73,25.9767]
[1720778107469,28.5447,134.81,134.72,6.6314]
[1720778107680,20.0,134.8,134.72,6.6314]
[1720778107978,7.4195,134.78,134.72,6.6314]
[1720778108178,7.4204,134.77,134.72,25.1882]
[1720778108490,20.0,134.8,134.73,7.4218]
[1720778108688,20.0,134.8,134.7,15.5842]
[1720778108689,29.62,134.78,134.7,15.5842]
[1720778108891,52.4201,134.77,134.72,7.4226]
[1720778109192,52.4201,134.77,134.71,18.5575]
[1720778109193,7.4206,134.76,134.71,25.9807]
[1720778109374,7.4196,134.78,134.73,7.4221]
[1720778109570,7.419,134.79,134.74,7.4216]
[1720778109926,7.4196,134.78,134.73,25.9771]
[1720778110197,7.4191,134.79,134.74,7.4216]
[1720778110411,7.4191,134.79,134.73,18.5553]
[1720778110412,10.0,134.79,134.72,6.053]
[1720778110586,7.4211,134.75,134.72,6.053]
[1720778110985,7.4207,134.76,134.72,6.053]
[1720778111204,18.5476,134.79,134.72,13.4756]
[1720778111395,7.4206,134.76,134.72,6.053]
[1720778111706,45.0,134.78,134.72,6.053]
[1720778111707,7.4202,134.77,134.72,6.053]
[1720778111880,7.4211,134.75,134.72,6.053]
[1720778112396,18.551,134.77,134.72,6.053]
[1720778112612,7.4213,134.75,134.72,6.053]
[1720778112810,45.0,134.76,134.72,6.053]
[1720778113107,7.4215,134.75,134.72,6.053]
[1720778113494,7.4218,134.74,134.72,6.053]
[1720778114019,20.0,134.73,134.65,22.4212477]
[1720778114310,104.62,134.73,134.65,22.4212477]
[1720778114476,7.4247,134.69,134.65,22.4212477]
[1720778114676,7.4233,134.71,134.66,7.4257]
[1720778114916,72.4224,134.73,134.68,7.4246]
[1720778115103,7.16612834,134.77,134.65,6.9229477]
[1720778115312,45.0,134.76,134.71,22.1029]
[1720778115509,7.4217,134.74,134.71,22.1029]
[1720778115699,7.4222,134.74,134.71,22.1029]
[1720778115904,63.5517,134.76,134.71,22.1029]
[1720778116099,45.0,134.76,134.71,22.1029]
[1720778116307,29.62,134.73,134.65,0.8551477]
[1720778116521,27.4232,134.72,134.67,25.9887]
[1720778116695,7.4234,134.71,134.67,18.5637]
[1720778116897,7.4234,134.71,134.66,7.4258]
[1720778117899,18.5532,134.75,134.65,0.8551477]
[1720778117900,48.1732,134.75,134.65,0.8551477]
[1720778118112,7.4221,134.74,134.69,30.5088]
[1720778118321,27.4216,134.75,134.69,30.5088]
[1720778118498,7.422,134.74,134.69,30.5088]
[1720778119413,7.422,134.74,134.7,7.4238]
[1720778119615,7.43351681,134.76,134.69,23.0846]
[1720778119801,58.1691,134.78,134.69,30.5088]
[1720778120114,58.1691,134.78,134.65,0.8551477]
[1720778120115,28.5596,134.71,134.65,0.8551477]
[1720778120305,7.4251,134.68,134.65,0.8551477]
[1720778120519,28.5596,134.71,134.65,0.8551477]
[1720778120699,7.4261,134.66,134.65,0.8551477]
[1720778121022,52.4261,134.66,134.65,0.8551477]
[1720778121417,29.62,134.7,134.65,0.8551477]
[1720778121722,7.4255,134.67,134.65,0.8551477]
[1720778122017,7.4252,134.68,134.65,0.8551477]
[1720778122219,52.4246,134.69,134.65,0.8551477]
[1720778122396,20.0,134.68,134.65,0.8551477]
[1720778122599,52.4246,134.69,134.65,0.8551477]
[1720778122909,45.0,134.69,134.65,0.8551477]
[1720778123103,7.424,134.7,134.65,8.2816477]
[1720778123426,17.69356388,134.74,134.66,6.5627]
[1720778123611,28.5571,134.72,134.65,0.8551477]
[1720778123806,7.4244,134.7,134.65,8.2813477]
[1720778124115,7.4245,134.69,134.65,0.8551477]
[1720778125717,10.0,134.72,134.65,0.8551477]
[1720778125918,7.424,134.7,134.65,8.2813477]
[1720778126322,20.0,134.71,134.66,18.5645]
[1720778126505,17.69356388,134.74,134.66,22.8647]
[1720778126707,7.4242,134.7,134.66,22.8647]
[1720778126915,10.0,134.72,134.66,22.8647]
[1720778127222,18.5561,134.73,134.66,22.8647]
[1720778127223,7.4242,134.7,134.66,22.8647]
[1720778127412,7.4248,134.69,134.66,22.8647]
[1720778127622,18.5561,134.73,134.66,22.8647]
[1720778127814,7.4242,134.7,134.66,22.8647]
[1720778128225,7.4245,134.69,134.66,22.8647]
[1720778128726,7.424,134.7,134.66,22.8647]
[1720778129223,7.4239,134.7,134.66,22.8647]
[1720778129437,7.4239,134.7,134.66,30.2907]
[1720778129620,17.69356388,134.74,134.68,7.4245]
[1720778129826,22.54888069,134.74,134.66,22.8647]
[1720778130030,15.12708069,134.74,134.69,7.4244]
[1720778130219,7.43351681,134.74,134.69,7.4244]
[1720778130432,14.85551681,134.74,134.69,25.9852]
[1720778130744,7.43351681,134.74,134.66,22.8647]
[1720778130905,7.4238,134.71,134.67,7.4254]
[1720778131223,7.4234,134.71,134.66,30.2903]
[1720778131413,7.424,134.7,134.66,22.8647]
[1720778132200,17.43351681,134.74,134.66,22.8647]
[1720778132201,7.4235,134.71,134.66,30.2906]
[1720778132401,7.424,134.7,134.66,30.2906]
[1720778132617,17.43351681,134.74,134.67,7.4254]
[1720778132832,7.4237,134.71,134.66,48.8552]
[1720778133037,45.0,134.73,134.66,48.8551]
[1720778133625,18.553,134.75,134.67,7.4253]
[1720778133830,7.4234,134.71,134.67,7.4253]
[1720778134047,7.4229,134.72,134.67,7.4253]
[1720778134328,10.0,134.76,134.69,7.424]
[1720778134501,7.4218,134.74,134.7,7.4237]
[1720778134706,25.32209736,134.78,134.71,15.5593]
[1720778134905,25.32209736,134.78,134.72,18.5568]
[1720778134906,7.4207,134.76,134.72,18.5568]
[1720778135318,7.4207,134.76,134.66,6.4769]
[1720778135319,7.4236,134.71,134.68,15.5593]
[1720778135521,7.4229,134.72,134.68,15.5593]
[1720778135711,7.4235,134.71,134.68,15.5593]
[1720778135912,7.4231,134.72,134.68,15.5593]
[1720778136613,7.4231,134.72,134.68,22.9842]
[1720778137013,7.4224,134.73,134.68,22.9842]
[1720778137210,7.4224,134.73,134.68,15.5593]
[1720778137423,7.4229,134.72,134.68,34.121]
[1720778137603,10.0,134.75,134.68,15.5593]
[1720778137807,7.4235,134.71,134.68,15.5593]
[1720778138024,7.4242,134.7,134.68,15.5593]
[1720778138323,63.5545,134.74,134.68,15.5593]
[1720778138324,10.0,134.73,134.68,15.5593]
[1720778138527,7.4244,134.69,134.68,15.5593]
[1720778139931,7.4252,134.68,134.66,6.4769]
[1720778140528,7.4246,134.69,134.66,6.4769]
[1720778140927,7.424,134.7,134.66,6.4769]
[1720778141516,7.4228,134.72,134.66,6.4769]
[1720778141719,7.4228,134.72,134.67,7.4252]
[1720778142130,7.4235,134.71,134.67,7.4252]
[1720778142328,7.4235,134.71,134.66,32.4677]
[1720778142851,7.424,134.7,134.66,25.0419]
[1720778143019,7.424,134.7,134.66,32.4679]
[1720778143325,7.4247,134.69,134.66,6.4769]
[1720778143525,18.5555,134.74,134.66,6.4769]
[1720778143526,7.423,134.72,134.66,6.4769]
[1720778143731,7.4222,134.73,134.66,6.4769]
[1720778143916,10.0,134.75,134.66,6.4769]
[1720778144116,7.4232,134.72,134.68,18.5623]
[1720778144451,28.548,134.79,134.7,18.5595]
[1720778144652,7.4206,134.76,134.71,7.4231]
[1720778144820,7.4206,134.76,134.7,6.4202]
[1720778144821,55.68151681,134.79,134.72,7.4227]
[1720778145022,7.4201,134.77,134.72,7.4227]
[1720778145530,7.4197,134.78,134.73,7.422]
[1720778146226,14.85261681,134.79,134.74,7.4216]
[1720778146428,7.43351681,134.79,134.76,23.2932]
[1720778146628,7.419,134.79,134.76,15.873]
[1720778147544,7.4187,134.8,134.77,6.343]
[1720778148445,7.4175,134.82,134.77,13.7629]
[1720778148621,29.7,134.83,134.78,7.4194]
[1720778148622,7.4169,134.83,134.78,7.4194]
[1720778148821,7.4174,134.82,134.78,7.4194]
[1720778149026,7.4168,134.83,134.77,24.8929]
[1720778149425,7.4168,134.83,134.78,7.4191]
[1720778149729,7.4162,134.84,134.79,7.4186]
[1720778150060,7.4168,134.83,134.79,7.4186]
[1720778150824,7.4162,134.84,134.79,7.4186]
[1720778151023,7.4173,134.82,134.77,24.8929]
[1720778151238,29.7,134.83,134.77,6.343]
[1720778151420,25.97771681,134.82,134.77,6.343]
[1720778151621,7.419,134.79,134.77,6.343]
[1720778151820,7.418,134.81,134.77,6.343]
[1720778152166,14.85081681,134.82,134.77,13.763]
[1720778152318,7.4178,134.81,134.77,6.343]
[1720778152650,7.4189,134.79,134.77,6.343]
[1720778152850,7.4194,134.78,134.77,6.343]
[1720778153169,7.419,134.79,134.77,6.343]
[1720778153461,7.4184,134.8,134.77,6.343]
[1720778153955,7.43351681,134.82,134.77,6.343]
[1720778153956,7.4181,134.81,134.77,6.343]
[1720778154159,7.4186,134.8,134.77,6.343]
[1720778154334,7.4189,134.79,134.77,6.343]
[1720778154755,7.4185,134.8,134.77,6.343]
[1720778155136,7.418,134.81,134.77,6.343]
[1720778155939,25.97691681,134.82,134.77,6.343]
[1720778156160,7.4184,134.8,134.77,6.343]
[1720778156365,7.418,134.81,134.77,6.343]
[1720778156534,7.43351681,134.82,134.77,6.343]
[1720778157040,7.4184,134.8,134.77,6.343]
[1720778157457,14.85081681,134.82,134.77,6.343]
[1720778157634,29.7,134.86,134.78,18.5474]
[1720778157844,7.43351681,134.86,134.78,18.5474]
[1720778158069,25.97161681,134.86,134.78,25.9665]
[1720778158564,7.43351681,134.86,134.78,18.5474]
[1720778158875,7.43351681,134.86,134.8,25.9639]
[1720778158876,7.4157,134.85,134.8,25.9639]
[1720778159169,14.84881681,134.86,134.82,15.5604]
[1720778159939,7.43351681,134.86,134.83,6.574]
[1720778160366,258.7,134.88,134.84,7.416]
[1720778160548,266.1141,134.88,134.83,13.9906]
[1720778160871,266.1141,134.88,134.84,7.4161]
[1720778161167,258.7,134.88,134.84,7.4161]
[1720778161376,7.413,134.9,134.85,7.4155]
[1720778161769,7.4135,134.89,134.85,7.4155]
[1720778161963,7.4135,134.89,134.84,25.9562]
[1720778162274,7.43351681,134.91,134.86,7.415]
[1720778162275,7.4131,134.9,134.86,7.415]
[1720778162580,14.84581681,134.91,134.86,7.415]
[1720778163556,7.43351681,134.91,134.87,22.9016]
[1720778163767,7.4116,134.93,134.88,13.9875]
[1720778163964,7.4116,134.93,134.89,7.4133]
[1720778164141,7.4108,134.94,134.88,25.1089]
[1720778164343,7.4108,134.94,134.89,7.4133]
[1720778164867,7.61478721,135.0,134.91,7.4118]
[1720778165071,10.0,135.02,134.88,6.574]
[1720778165072,7.43351681,134.98,134.88,6.574]
[1720778165240,7.43351681,134.98,134.88,25.1087]
[1720778165241,29.7,134.95,134.88,25.1087]
[1720778165440,29.7,134.95,134.9,7.4127]
[1720778165441,7.4105,134.95,134.9,7.4127]
[1720778165658,7.4097,134.96,134.92,7.4117]
[1720778165846,7.4092,134.97,134.92,7.4117]
[1720778166166,7.43351681,134.98,134.93,15.1471]
[1720778166367,25.95481681,134.98,134.93,15.1471]
[1720778166670,29.7,134.97,134.89,16.1214]
[1720778166886,29.7,134.94,134.89,16.1214]
[1720778167165,48.2273,134.94,134.89,16.1214]
[1720778167337,29.7,134.94,134.89,16.1214]
[1720778167543,20.0,134.93,134.89,16.1214]
[1720778167743,7.4128,134.9,134.89,16.1214]
[1720778167947,7.4134,134.89,134.85,15.1537]
[1720778168170,7.414,134.88,134.85,15.1537]
[1720778168556,74.7,134.92,134.85,15.1537]
[1720778168557,74.7,134.92,134.85,22.5693]
[1720778168870,27.4125,134.91,134.86,7.4148]
[1720778169042,20.0,134.91,134.86,7.4148]
[1720778169246,27.4124,134.91,134.86,25.9524]
[1720778169454,20.0,134.91,134.86,18.5376]
[1720778169655,20.0,134.91,134.87,7.4144]
[1720778170475,20.0,134.91,134.89,7.4133]
[1720778170668,29.7,134.94,134.88,18.5349]
[1720778170669,29.7,134.96,134.9,7.4128]
[1720778171064,7.4107,134.94,134.89,7.4132]
[1720778171376,7.4107,134.94,134.89,7.4131]
[1720778171759,7.4103,134.95,134.9,7.4128]
[1720778172459,7.4103,134.95,134.9,25.945]
[1720778172770,7.4108,134.94,134.9,25.945]
[1720778173871,7.4108,134.94,134.91,6.4743]
[1720778174050,7.4103,134.95,134.91,6.4743]
[1720778174460,48.2225,134.98,134.91,6.4743]
[1720778174667,7.4105,134.95,134.91,6.4743]
[1720778174978,7.4107,134.94,134.91,6.4743]
[1720778175275,10.0,134.98,134.86,13.889]
[1720778175444,7.4125,134.91,134.86,6.4743]
[1720778175983,7.4119,134.92,134.86,6.4743]
[1720778176273,7.4108,134.94,134.86,6.4743]
[1720778176447,29.7,134.96,134.89,7.4133]
[1720778176647,20.0,134.95,134.89,7.4133]
[1720778177059,20.0,134.95,134.88,7.4137]
[1720778177269,7.4121,134.92,134.88,18.5348]
[1720778177448,7.4121,134.92,134.88,25.9486]
[1720778177649,38.5255,134.95,134.89,7.413]
[1720778177650,7.4108,134.94,134.89,7.413]
[1720778177870,7.4108,134.94,134.9,7.4127]
[1720778178177,27.4101,134.95,134.91,7.4123]
[1720778178375,27.4101,134.95,134.9,25.9447]
[1720778178565,20.0,134.95,134.91,7.4122]
[1720778178759,20.0,134.95,134.92,7.4116]
[1720778178966,7.4111,134.94,134.87,15.5308]
[1720778179165,10.0,135.0,134.89,7.4132]
[1720778179166,7.4112,134.93,134.89,7.4132]
[1720778179366,27.4103,134.95,134.9,7.4127]
[1720778179568,20.0,134.94,134.91,7.4119]
[1720778179770,20.0,134.94,134.92,7.4117]
[1720778179968,20.0,134.95,134.92,7.4117]
[1720778180670,27.4102,134.95,134.91,7.4122]
[1720778180869,20.0,134.95,134.91,7.4122]
[1720778181073,27.4105,134.95,134.9,25.9445]
[1720778181272,7.4112,134.93,134.89,7.4132]
[1720778181473,7.4121,134.92,134.87,34.0658]
[1720778181672,7.4114,134.93,134.88,7.4138]
[1720778181975,7.4114,134.93,134.89,7.4133]
[1720778182666,27.4104,134.95,134.87,15.5308]
[1720778182866,20.0,134.95,134.87,15.5308]
[1720778183179,27.4092,134.97,134.93,22.9633]
[1720778183381,20.0,134.97,134.93,15.5524]
[1720778183975,7.4101,134.96,134.93,15.5524]
[1720778184196,7.4102,134.95,134.93,15.5524]
[1720778184779,27.4093,134.97,134.93,15.5524]
[1720778184950,29.7,134.98,134.93,34.0803]
[1720778185150,29.7,135.0,134.93,34.0803]
[1720778185356,7.4089,134.98,134.93,41.4914]
[1720778185568,7.4089,134.98,134.95,6.2043]
[1720778187383,7.4076,135.0,134.95,6.2043]
[1720778187563,7.4083,134.99,134.95,6.2043]
[1720778187761,48.2161,135.02,134.95,6.2043]
[1720778187972,7.4093,134.97,134.95,6.2043]
[1720778188169,7.4093,134.97,134.93,15.5524]
[1720778188377,7.4097,134.96,134.93,15.5524]
[1720778188857,7.4092,134.97,134.93,15.5524]
[1720778189064,7.4086,134.98,134.94,7.4106]
[1720778189880,7.4086,134.98,134.93,22.9634]
[1720778190077,29.7,135.0,134.94,7.4106]
[1720778190271,7.4093,134.97,134.93,22.9634]